Cogmind - Beta 15 @@@ ROGUE MODE // 2025.06.29 @ 21:01:26 Player: winnking222 Result: Destroyed by Y-64 Sentinel with Wave Gun Performance ------------- Evolutions (4) 2000 Regions Visited (10) 2000 Robots Destroyed (106) 530 Value Destroyed (3594) 3594 Prototype IDs (18) 360 Alien Tech Used (0) 0 Bonus (1073) 1073 TOTAL SCORE: 9557 Bonus ------- High Alert Combat Kills 162 Follower Combat Kills 758 Registered with UFD 300 Friendly Fire -147 Cogmind --------- Core Integrity 0/850 Matter 278/300 Energy 99/100 System Corruption 0% Temperature Cool (9) Movement Core (50) Location -6/Archives Parts ------- > --- POWER (1) -------- (None) > --- PROPULSION (4) --- (None) > --- UTILITY (7) ------ 0b10 Decoder Chip [Skirmisher] Improved Targeting Computer Core Analyzer > --- WEAPON (3) ------- (None) > --- INVENTORY (5) ---- Micro Antimatter Reactor Large Matter Pod (150) Heavy Flail Large Botcube Peak State ------------ > --- POWER ------------ Improved Deuterium Engine > --- PROPULSION ------- Carbon-fiber Leg Carbon-fiber Leg Overtuned Huge Scrapsphere > --- UTILITY ---------- Scrap Suit Large Storage Unit Seismic Detector 0b10 Decoder Chip [Skirmisher] Improved Targeting Computer Core Analyzer > --- WEAPON ----------- Overtuned Coil Gun Overtuned Coil Gun Antimatter Cannon > --- INVENTORY -------- Deuterium Engine Carbon-fiber Leg Carbon-fiber Leg Armored Leg Advanced Heat Sink Advanced Heat Sink Large Matter Pod Phase Shifter Improved Light Armor Plating Improved Assault Rifle Overtuned Barrage Gun Improved Heavy Machine Gun Heavy Flail Large Botcube [Rating: 68] Favorites ----------- Power Heavy Ion Engine Engine Heavy Ion Engine Power Core Light Nuclear Core Propulsion Carbon-fiber Leg Leg Carbon-fiber Leg Wheel Overtuned Huge Scrapsphere Utility Large Storage Unit Device Seismic Detector Storage Large Storage Unit Processor Improved Targeting Computer Protection Light Armor Plating Weapon Heavy Assault Rifle Energy Gun Medium Laser Energy Cannon Advanced Beam Cannon Ballistic Gun Heavy Assault Rifle Ballistic Cannon Antimatter Cannon Impact Weapon Heavy Flail Slashing Weapon Axe Build | -11 -10 -10 -9 -9 -9 -9 -6 -6 -6 -6 ------- Run | Yrd Mat Min Mat Sto Rec Scr Fac Ext Cet Arc Slots Evolved 8 | . . . 2 . . . 6 . . . Power . | . . . . . . . . . . . Propulsion 2 | . . . . . . . 2 . . . Utility 5 | . . . 1 . . . 4 . . . Weapon 1 | . . . 1 . . . . . . . Parts Attached 72 | 7 6 . 9 16 1 2 16 11 4 . Power 10 | 1 . . 2 3 . 1 1 1 1 . Engine 8 | 1 . . 1 3 . . 1 1 1 . Core 2 | . . . 1 . . 1 . . . . Reactor . | . . . . . . . . . . . Propulsion 20 | 2 1 . 2 2 . . 6 6 1 . Treads . | . . . . . . . . . . . Leg 19 | 2 1 . 2 2 . . 6 5 1 . Wheel 1 | . . . . . . . . 1 . . Hover . | . . . . . . . . . . . Flight . | . . . . . . . . . . . Utility 18 | 2 3 . 3 1 . . 5 3 1 . Device 7 | 1 1 . 1 . . . 3 1 . . Storage 3 | 1 2 . . . . . . . . . Processor 4 | . . . . 1 . . 1 2 . . Hackware . | . . . . . . . . . . . Protection 4 | . . . 2 . . . 1 . 1 . Artifact . | . . . . . . . . . . . Weapon 24 | 2 2 . 2 10 1 1 4 1 1 . Energy Gun 3 | 1 . . . 2 . . . . . . Energy Cannon 1 | . . . . 1 . . . . . . Ballistic Gun 18 | 1 2 . 2 6 1 1 3 1 1 . Ballistic Cannon 1 | . . . . . . . 1 . . . Launcher . | . . . . . . . . . . . Special Weapon . | . . . . . . . . . . . Impact Weapon 1 | . . . . 1 . . . . . . Slashing Weapon . | . . . . . . . . . . . Piercing Weapon . | . . . . . . . . . . . Special Melee Weapon . | . . . . . . . . . . . Unidentified Prototypes 8 | . . . . 6 . . 2 . . . Parts Lost 36 | . 3 1 . 2 . . 3 16 11 . Power 4 | . . 1 . 1 . . . 1 1 . Propulsion 13 | . 1 . . . . . 2 5 5 . Utility 10 | . 1 . . 1 . . 1 4 3 . Weapon 9 | . 1 . . . . . . 6 2 . Highest Loss Streak 9 | . 3 1 . 1 . . 2 7 9 . To Critical Strikes 2 | . . . . . . . . . 2 . Average Backups 12 | 3 8 11 12 14 15 13 10 11 5 3 Power 1 | . 1 1 2 2 2 1 . 1 1 1 Propulsion 4 | 1 2 4 5 7 7 5 3 2 . . Utility 3 | . 2 4 3 2 3 3 3 4 2 1 Weapon 2 | . 2 2 2 2 3 3 4 3 1 1 Tool/Special . | . . . . . . . . . . . Unused Backups 16 | . . . 1 2 . 7 2 . 2 2 Power 2 | . . . . . . 1 . . . 1 Propulsion 7 | . . . . 1 . 6 . . . . Utility 6 | . . . 1 . . . 2 . 2 1 Weapon 1 | . . . . 1 . . . . . . Tool/Special . | . . . . . . . . . . . Average Slot Usage (%) 96 | . 99 85 98 99 100 100 92 89 60 20 Engine 8 | . 14 . 6 8 11 11 6 5 3 . Leg 22 | . 28 28 22 22 22 22 25 20 11 . Device 11 | . 13 14 11 11 11 11 12 12 1 . Storage 10 | . 14 14 11 11 11 11 6 6 3 . Processor 10 | . . . . 10 11 11 12 17 26 20 Protection 1 | . . . 10 . . . 5 2 3 . Ballistic Gun 27 | . 15 28 32 32 33 33 16 15 6 . Peak Build Rating 68 | 7 10 10 15 24 24 29 61 68 55 14 Average Rating 28 | 4 7 9 11 21 24 25 55 60 37 14 On Entrance 20 | . 7 10 9 15 24 24 29 60 36 14 Naked Turns . | . . . . . . . . . . . Heaviest Build 55 | 15 30 23 34 38 38 38 55 55 40 . Greatest Support 71 | 20 20 20 20 35 35 35 61 71 71 3 Greatest Overweight (x) 2 | . 2 1 1 1 1 1 1 2 . . Average Overweight (x) . | . . 1 1 . 1 . . . . . Largest Inventory Capacity 15 | 8 15 15 15 15 15 15 15 15 15 5 Average Capacity 14 | 7 11 15 15 15 15 15 15 15 11 5 Most Carried 15 | 5 11 12 15 15 15 15 15 15 14 5 Average Carried 13 | 3 8 11 12 14 15 14 13 14 7 5 Final Capacity 15 | 8 15 15 15 15 15 15 15 15 5 5 Final Carried 15 | 4 11 12 15 15 15 15 15 15 5 5 Class Distribution -------------------- 49% | Commander-Gunner 22% | Scavenger-Gunner 8% | Mutant 7% | Scavenger-Tank 5% | Scavenger-Mutant 4% | Scavenger-Scrapper Dominant Class ---------------- Mutant | -10/Materials Scavenger-Mutant | -10/Mines Scavenger-Tank | -9/Materials Scavenger-Gunner | -9/Storage Commander-Gunner | -9/Recycling Commander-Gunner | -9/Scraptown Scavenger-Gunner | -6/Factory Scavenger-Gunner | -6/Extension Mutant | -6/Cetus Mutant | -6/Archives Resources | -11 -10 -10 -9 -9 -9 -9 -6 -6 -6 -6 ----------- Run | Yrd Mat Min Mat Sto Rec Scr Fac Ext Cet Arc Matter Collected 4013 | 282 289 10 165 687 136 58 503 1775 108 . Remotely . | . . . . . . . . . . . Salvage Created 4274 | 104 504 26 197 1019 53 . 346 1917 108 . Parts 235 | 3 31 3 14 68 5 . 14 91 6 . Haulers Intercepted 5 | . 1 . . 2 . . 1 1 . . Recyclers Shooed 1 | . . . . . . . . 1 . . Parts Field Recycled . | . . . . . . . . . . . Retrieved Matter . | . . . . . . . . . . . Parts Self-Destructed . | . . . . . . . . . . . Prevented . | . . . . . . . . . . . Kills | -11 -10 -10 -9 -9 -9 -9 -6 -6 -6 -6 ------- Run | Yrd Mat Min Mat Sto Rec Scr Fac Ext Cet Arc Combat Hostiles Destroyed 73 | . 12 2 4 20 1 . 5 27 2 . Guns 66 | . 12 2 4 20 1 . 3 22 2 . Cannons 7 | . . . . . . . 2 5 . . Classes Destroyed 15 | 2 6 . 1 2 . . 1 3 . . Worker 5 | . 1 . . . . . . 4 . . Builder 5 | . . . . 1 . . 2 2 . . Tunneler 2 | 1 1 . . . . . . . . . Hauler 5 | . 1 . . 2 . . 1 1 . . Recycler 4 | 1 . . . . . . . 3 . . Operator 4 | . 1 . . 1 . . . 2 . . Watcher 7 | . 2 . . 2 . . 1 2 . . Swarmer 14 | . 6 2 . 3 . . . 3 . . Grunt 32 | . 6 . 1 9 . . 3 13 . . Brawler 2 | . . . . 1 . . . 1 . . Sentry 15 | . . . 3 7 1 . . 4 . . Hunter 2 | . . . . . . . . 2 . . Programmer 3 | . . . . . . . 2 1 . . Behemoth 2 | . . . . . . . . 2 . . Cetus Guard 2 | . . . . . . . . . 2 . Butcher 2 | . . . . . . . . 2 . . Best Kill Streak 8 | 2 8 2 2 4 1 . 3 8 1 . Combat Bots Only 6 | . 6 2 2 4 1 . 3 5 1 . Max Kills in Single Turn 2 | 1 1 1 1 2 1 . 1 2 1 . Gunslinging 1 | . . . . 1 . . . . . . Exploded . | . . . . . . . . . . . Melee . | . . . . . . . . . . . Uniques/NPCs Destroyed . | . . . . . . . . . . . Combat | -11 -10 -10 -9 -9 -9 -9 -6 -6 -6 -6 -------- Run | Yrd Mat Min Mat Sto Rec Scr Fac Ext Cet Arc Hostile Shots Fired 599 | . 72 16 35 67 8 . 31 268 94 8 Missed 203 | . 18 3 7 22 4 . 8 99 37 5 Hits 396 | . 54 13 28 45 4 . 23 169 57 3 Melee 5 | . . . . 1 . . . 4 . . Projectile 391 | . 54 13 28 44 4 . 23 165 57 3 Critical Strikes 26 | . 1 . 1 2 1 . 1 9 11 . Part Disruptions 2 | . . . . . 1 . 1 . . . Damage Taken 6562 | . 571 110 404 584 77 . 540 2717 1486 73 Core 1067 | . 96 7 45 45 . . 36 358 407 73 Absorbed by Shields . | . . . . . . . . . . . Regen/Repaired (Parts) 189 | . . . . . . . 6 183 . . Core Remaining (%) 78 | 100 . 58 . . . 77 . . . . Volleys Fired 303 | 4 51 6 25 57 5 . 26 112 17 . Largest 3 | 2 2 2 3 3 3 . 3 3 2 . Hottest 97 | 70 70 40 60 69 69 . 97 97 38 . Shots Fired 801 | 8 101 12 75 170 15 . 70 317 33 . Gun 706 | 8 101 12 75 170 15 . 57 235 33 . Cannon 95 | . . . . . . . 13 82 . . Launcher . | . . . . . . . . . . . Special . | . . . . . . . . . . . Kinetic 754 | 4 58 12 75 170 15 . 70 317 33 . Thermal 47 | 4 43 . . . . . . . . . Explosive . | . . . . . . . . . . . Electromagnetic . | . . . . . . . . . . . Robot Hit Streak 22 | 4 9 2 4 16 10 . 7 18 22 . Robot Miss Streak 6 | 1 3 3 6 4 2 . 3 6 2 . Penetration Max 2 | . . . . . . . . 2 . . Secondary Targets 13 | . 1 . . 7 . . 2 1 2 . Max Gunslinging Chain 1 | . 1 . . 1 . . 1 1 1 . Shots Hit Robots 465 | 5 61 6 34 104 12 . 46 169 28 . Core Hits 197 | 2 25 3 16 39 3 . 15 80 14 . Critical Kills 3 | . . . . . . . . 3 . . Critical Parts Destroyed 13 | . . . 1 2 . . . 10 . . Critical Strikes 22 | . 3 . 1 2 . . 1 15 . . Burn 3 | . 3 . . . . . . . . . Destroy 16 | . . . 1 2 . . . 13 . . Blast 3 | . . . . . . . 1 2 . . Melee Attacks 10 | . . . . 8 . . . 2 . . Impact 10 | . . . . 8 . . . 2 . . Slashing . | . . . . . . . . . . . Piercing . | . . . . . . . . . . . Sneak Attacks . | . . . . . . . . . . . Combat Hostiles . | . . . . . . . . . . . Follow-up Attacks . | . . . . . . . . . . . Damage Inflicted 10683 | 76 755 48 318 1576 172 . 1205 5980 553 . Guns 8723 | 76 755 48 309 1575 172 . 878 4357 553 . Cannons 1942 | . . . . . . . 327 1615 . . Explosions . | . . . . . . . . . . . Melee . | . . . . . . . . . . . Ramming 18 | . . . 9 1 . . . 8 . . Kinetic 10288 | 51 403 48 309 1575 172 . 1205 5972 553 . Thermal 377 | 25 352 . . . . . . . . . Explosive . | . . . . . . . . . . . Electromagnetic . | . . . . . . . . . . . Impact . | . . . . . . . . . . . Slashing . | . . . . . . . . . . . Piercing . | . . . . . . . . . . . Highest Corruption 1 | . . . . 1 1 1 . . . . Average Corruption 1 | . . . . 1 1 1 . . . . Corruption Purged . | . . . . . . . . . . . Corruption Blocked . | . . . . . . . . . . . Effects 34 | . . . . 3 9 22 . . . . Message Errors 9 | . . . . . 3 6 . . . . Matter Fused 7 | . . . . . . 7 . . . . Heat Flow Errors 3 | . . . . 1 . 2 . . . . Energy Discharges 7 | . . . . . 5 2 . . . . Parts Fused 3 | . . . . . 1 2 . . . . Data Loss (minor) 4 | . . . . 1 . 3 . . . . Weapon Failures 1 | . . . . 1 . . . . . . Overload Shots . | . . . . . . . . . . . Overflow Damage 31 | . . . . . . . 10 21 . . Projectiles 31 | . . . . . . . 10 21 . . Explosions . | . . . . . . . . . . . Melee . | . . . . . . . . . . . Knockbacks 6 | . . . . . . . 2 4 . . Impact . | . . . . . . . . . . . Kinetic 6 | . . . . . . . 2 4 . . Secondary . | . . . . . . . . . . . Self-Inflicted Damage . | . . . . . . . . . . . Shots . | . . . . . . . . . . . Rammed . | . . . . . . . . . . . Targets Rammed 7 | . 1 . 1 2 1 . . 2 . . Kicked 7 | . 1 . 1 2 1 . . 2 . . Crushed . | . . . . . . . . . . . Highest Temperature 431 | 27 102 . 98 117 30 238 264 431 . . Average Temperature 58 | 12 25 . 32 25 9 117 76 88 . . Received Heat Transfer 2174 | . 240 . 153 219 45 . 189 1175 126 27 Effects 1 | . . . . . . . . 1 . . Shutdowns 1 | . . . . . . . . 1 . . Siege Activations . | . . . . . . . . . . . Martial Activations . | . . . . . . . . . . . Shielding Activations . | . . . . . . . . . . . Robots Disrupted . | . . . . . . . . . . . Combat Hostiles . | . . . . . . . . . . . Robots Corrupted . | . . . . . . . . . . . Combat Hostiles . | . . . . . . . . . . . Parts Fried . | . . . . . . . . . . . Impact Corruptions . | . . . . . . . . . . . Robots Melted . | . . . . . . . . . . . Combat Hostiles . | . . . . . . . . . . . Parts Melted 3 | . 1 . . . . . . 2 . . Heat Transferred 1332 | 74 1258 . . . . . . . . . Parts Sabotaged 2 | . . . . . . . . 2 . . Parts Stolen . | . . . . . . . . . . . Parts Stripped . | . . . . . . . . . . . Power Chain Reactions . | . . . . . . . . . . . Alert | -11 -10 -10 -9 -9 -9 -9 -6 -6 -6 -6 ------- Run | Yrd Mat Min Mat Sto Rec Scr Fac Ext Cet Arc Maximum Alert Level 3 | . . . . 1 . . . 3 1 . Low Security (%) 85 | 100 100 100 100 92 100 . 100 48 . 100 Level 1 6 | . . . . 7 . . . 11 100 . Level 2 2 | . . . . . . . . 13 . . Level 3 5 | . . . . . . . . 25 . . Level 4 . | . . . . . . . . . . . Level 5 . | . . . . . . . . . . . High Security . | . . . . . . . . . . . Max Security . | . . . . . . . . . . . Peak Influence 772 | 10 154 50 128 243 87 . 100 772 348 83 Initial 348 | . . 9 . 48 87 . . 5 348 83 Average 108 | 1 59 5 69 89 7 . 25 327 284 82 Influence Increases 3312 | 10 337 50 340 773 109 . 257 1396 40 . Destroy 0b10 Robot/C 1940 | . 240 40 200 460 60 . 140 760 40 . Destroy 0b10 Robot/NC 180 | 10 30 . 15 30 . . 20 75 . . Destroy Leader 438 | . 56 10 66 158 . . 44 104 . . Allied During Kill 287 | . . . 59 38 30 . 13 147 . . Successful Hack 61 | . 9 . . 9 19 . 5 19 . . Disable Machine 210 | . . . . 75 . . 15 120 . . Destroy Structure 151 | . 2 . . 3 . . 20 126 . . Lose Combat Pursuer 45 | . . . . . . . . 45 . . Influence Decreases 3239 | 10 311 76 224 664 334 . 245 784 456 135 Entered New Map 631 | . . 17 . 68 138 . . 7 276 125 Time Decay 2093 | 10 294 50 224 556 196 . 202 481 70 10 Lost Part 322 | . 17 9 . 20 . . 10 156 110 . Lost Ally 193 | . . . . 20 . . 33 140 . . Squads Dispatched 22 | . 2 . 1 4 . . 6 8 1 . Investigation 7 | . . . . . . . 3 3 1 . Extermination 2 | . . . . . . . 2 . . . Reinforcement 11 | . 2 . 1 4 . . 1 3 . . Assault 2 | . . . . . . . . 2 . . Garrison . | . . . . . . . . . . . Intercept . | . . . . . . . . . . . Searches Triggered . | . . . . . . . . . . . Construction Impeded 2 | . . . . . . . . 2 . . Haulers Reinforced . | . . . . . . . . . . . Active Scanning Responses . | . . . . . . . . . . . Cargo Convoy Interrupts . | . . . . . . . . . . . Stealth | -11 -10 -10 -9 -9 -9 -9 -6 -6 -6 -6 --------- Run | Yrd Mat Min Mat Sto Rec Scr Fac Ext Cet Arc Distress Signals 9 | . 2 . 2 2 . . . 2 1 . Communications Jammed . | . . . . . . . . . . . Distress Signals . | . . . . . . . . . . . Times Spotted 141 | . 18 3 14 28 4 . 9 55 6 4 Peak Tracking Total 7 | . 6 3 2 3 1 . 5 7 5 4 Tactical Retreats 1 | . . . . . . . . 1 . . Traps | -11 -10 -10 -9 -9 -9 -9 -6 -6 -6 -6 ------- Run | Yrd Mat Min Mat Sto Rec Scr Fac Ext Cet Arc Traps Triggered 4 | . . . . 1 . . 1 2 . . Indirectly . | . . . . . . . . . . . Trap Hack Attempts . | . . . . . . . . . . . Triggered . | . . . . . . . . . . . Disarmed . | . . . . . . . . . . . Reprogrammed . | . . . . . . . . . . . Reused . | . . . . . . . . . . . Traps Extracted . | . . . . . . . . . . . Installed . | . . . . . . . . . . . Triggered . | . . . . . . . . . . . Machines | -11 -10 -10 -9 -9 -9 -9 -6 -6 -6 -6 ---------- Run | Yrd Mat Min Mat Sto Rec Scr Fac Ext Cet Arc Machines Disabled 14 | . . . . 5 . . 1 8 . . Max in Single Turn 3 | . . . . 1 . . 1 3 . . Energy Cycler 2 | . . . . . . . . 2 . . Machines Repaired . | . . . . . . . . . . . Machines Dismantled . | . . . . . . . . . . . Machines Sabotaged . | . . . . . . . . . . . Overloaded Fab Kills . | . . . . . . . . . . . Hacking | -11 -10 -10 -9 -9 -9 -9 -6 -6 -6 -6 --------- Run | Yrd Mat Min Mat Sto Rec Scr Fac Ext Cet Arc Machines Accessed 27 | . 2 . . 5 5 2 4 7 2 . Terminals 21 | . 2 . . 4 5 . 1 7 2 . Fabricators . | . . . . . . . . . . . Repair Stations . | . . . . . . . . . . . Recycling Units 4 | . . . . 1 . . 3 . . . Scanalyzers . | . . . . . . . . . . . Garrison Access . | . . . . . . . . . . . Total Hacks 63 | . 6 . . 11 8 8 9 16 5 . Successful 32 | . 2 . . 6 5 8 6 5 . . Failed 31 | . 4 . . 5 3 . 3 11 5 . Catastrophic 3 | . 1 . . . . . . . 2 . Database Lockouts . | . . . . . . . . . . . Manual 4 | . . . . . . . 4 . . . Terminals 47 | . 6 . . 10 8 . 2 16 5 . Fabricators . | . . . . . . . . . . . Repair Stations . | . . . . . . . . . . . Recycling Units 8 | . . . . 1 . . 7 . . . Scanalyzers . | . . . . . . . . . . . Garrison Access . | . . . . . . . . . . . Terminal Hacks 26 | . 2 . . 5 5 8 1 5 . . Record 9 | . . . . . . 8 . 1 . . Prototype ID Bank 4 | . . . . . 4 . . . . . Open Door 5 | . . . . 3 . . . 2 . . Branch Access Points 1 | . . . . 1 . . . . . . Locate Traps 2 | . 1 . . 1 . . . . . . Reinforcement Status 1 | . . . . . . . 1 . . . Zone Layout 4 | . 1 . . . 1 . . 2 . . Fabricator Hacks . | . . . . . . . . . . . Repair Station Hacks . | . . . . . . . . . . . Recycling Unit Hacks 3 | . . . . 1 . . 2 . . . Report Inventory 2 | . . . . 1 . . 1 . . . Retrieve Components 1 | . . . . . . . 1 . . . Scanalyzer . | . . . . . . . . . . . Garrison Access Hacks . | . . . . . . . . . . . Unauthorized Hacks 3 | . . . . . . . 3 . . . Terminals . | . . . . . . . . . . . Fabricators . | . . . . . . . . . . . Repair Stations . | . . . . . . . . . . . Recycling Units 3 | . . . . . . . 3 . . . Fedlink 3 | . . . . . . . 3 . . . Scanalyzers . | . . . . . . . . . . . Garrison Access . | . . . . . . . . . . . Data Cores Recovered 4 | . 1 . . 1 . . . 2 . . Used 1 | . . . . . . . . 1 . . Hacking Detections 12 | . . . . 2 2 . 2 4 2 . Full Trace Events 5 | . . . . . 1 . . 3 1 . Feedback Events . | . . . . . . . . . . . Feedback Blocked . | . . . . . . . . . . . Robot Schematics Acquired . | . . . . . . . . . . . Robots Built . | . . . . . . . . . . . Authchips . | . . . . . . . . . . . Time . | . . . . . . . . . . . Total Robot Build Rating . | . . . . . . . . . . . Part Schematics Acquired . | . . . . . . . . . . . Parts Built . | . . . . . . . . . . . Authchips . | . . . . . . . . . . . Time . | . . . . . . . . . . . Total Part Build Rating . | . . . . . . . . . . . Parts Repaired . | . . . . . . . . . . . Time . | . . . . . . . . . . . Parts Recycled . | . . . . . . . . . . . Recycled Matter . | . . . . . . . . . . . Retrieved Matter . | . . . . . . . . . . . Retrieved Components 2 | . . . . . . . 2 . . . Parts Scanalyzed . | . . . . . . . . . . . Part Schematics Acquired . | . . . . . . . . . . . Parts Damaged . | . . . . . . . . . . . Bothacking | -11 -10 -10 -9 -9 -9 -9 -6 -6 -6 -6 ------------ Run | Yrd Mat Min Mat Sto Rec Scr Fac Ext Cet Arc Used RIF Installer . | . . . . . . . . . . . Robots Hacked . | . . . . . . . . . . . Non-combat . | . . . . . . . . . . . Combat . | . . . . . . . . . . . Robot Hacks Applied . | . . . . . . . . . . . Relay Couplers Released . | . . . . . . . . . . . Fabnet Peak Effective % . | . . . . . . . . . . . Robots Rewired 5 | . . . . . . . . 5 . . Allies Hacked . | . . . . . . . . . . . Hacks Repelled . | . . . . . . . . . . . Allies | -11 -10 -10 -9 -9 -9 -9 -6 -6 -6 -6 -------- Run | Yrd Mat Min Mat Sto Rec Scr Fac Ext Cet Arc Total Allies 24 | . . 5 . 10 . . . 9 . . Largest Group 10 | . . 5 5 10 10 9 9 6 . . Highest-Rated Group 191 | . . 85 85 88 88 80 80 191 . . Highest-Rated Ally 39 | . . 31 31 31 16 16 16 39 . . Total Orders . | . . . . . . . . . . . Ally Attacks 226 | . . . 65 22 14 . 38 87 . . Total Damage 2477 | . . . 662 237 133 . 337 1108 . . Kills 29 | . . . 10 3 2 . 2 12 . . Allies Corrupted . | . . . . . . . . . . . Allies Melted 2 | . . . . . 1 . . 1 . . Intel | -11 -10 -10 -9 -9 -9 -9 -6 -6 -6 -6 ------- Run | Yrd Mat Min Mat Sto Rec Scr Fac Ext Cet Arc Active Infowar (turns) 9964 | 4 712 . 526 1621 1558 3310 600 1455 157 21 Seismic 9602 | 4 712 . 526 1621 1558 3310 422 1449 . . Decoding 2230 | . . . . . . . 597 1455 157 21 Robot Analysis Total . | . . . . . . . . . . . Derelict Logs Recovered 1 | . . 1 . . . . . . . . Drone Launches . | . . . . . . . . . . . Drone Recoveries . | . . . . . . . . . . . Decoded 0b10 Intel 20 | . . . . . . . 6 13 1 . Patrols 5 | . . . . . . . 1 4 . . Investigations 6 | . . . . . . . 4 1 1 . Reinforcements 4 | . . . . . . . . 4 . . Guards 5 | . . . . . . . 1 4 . . Exploration | -11 -10 -10 -9 -9 -9 -9 -6 -6 -6 -6 ------------- Run | Yrd Mat Min Mat Sto Rec Scr Fac Ext Cet Arc Turns Passed 10578 | 67 766 460 544 1621 1558 3310 600 1472 159 21 Spaces Moved 5277 | 38 397 222 237 518 744 1628 395 918 145 35 Core 173 | 11 . . . . . . . . 127 35 Treads . | . . . . . . . . . . . Legs 4804 | 27 397 222 237 518 744 1628 395 622 14 . Wheels 300 | . . . . . . . . 296 4 . Hover . | . . . . . . . . . . . Flight . | . . . . . . . . . . . Fastest Speed 50 | 50 120 190 190 130 200 130 120 90 50 50 Average Speed 167 | 99 143 190 190 191 200 199 122 111 57 50 Slowest Speed 260 | 120 260 190 190 200 210 200 190 190 120 50 Overloaded Moves . | . . . . . . . . . . . Propulsion Burnouts . | . . . . . . . . . . . Robots Hopped . | . . . . . . . . . . . Potential Cave-ins . | . . . . . . . . . . . Cave-ins Triggered . | . . . . . . . . . . . Exploration Rate (%) 56 | 3 50 40 31 88 98 89 14 90 67 55 Regions Visited 10 Branch Regions 7 Pre-discovered Areas 1 | . . 1 . . . . . . . . Known Exits Taken 1 | . . . . 1 . . . . . . Unknown Exits Taken 9 | 1 1 1 1 . 1 1 1 1 1 . Scrap Searched 5 | . . . . . . 5 . . . . Spaces Dug 4 | . . . . 1 . . . 3 . . Terrain Destroyed 170 | . . . . 1 . . 26 143 . . Melee 1 | . . . . 1 . . . . . . Projectile 153 | . . . . . . . 26 127 . . AOE 16 | . . . . . . . . 16 . . Terrain Rammed . | . . . . . . . . . . . Walls Destroyed . | . . . . . . . . . . . Machines Disabled . | . . . . . . . . . . . Actions | -11 -10 -10 -9 -9 -9 -9 -6 -6 -6 -6 --------- Run | Yrd Mat Min Mat Sto Rec Scr Fac Ext Cet Arc Total 6520 | 59 495 251 291 1010 797 1688 472 1228 191 38 Wait 646 | . 28 23 . 374 46 38 18 94 22 3 Move 5267 | 37 396 221 236 517 743 1627 394 917 144 35 Hop . | . . . . . . . . . . . Pick Up 73 | 11 11 1 12 7 . 8 13 10 . . Fast Attach 13 | . . . . 8 . 1 . 4 . . Attach 41 | 7 3 . 3 2 . . 8 11 7 . Detach 2 | . . . . . . . . 2 . . Swap 41 | . 3 . 6 18 1 2 8 3 . . Drop 49 | . 2 . 8 16 1 12 5 4 1 . Fire 303 | 4 51 6 25 57 5 . 26 112 17 . Melee 10 | . . . . 8 . . . 2 . . Ram . | . . . . . . . . . . . Kick 7 | . 1 . 1 2 1 . . 2 . . Crush . | . . . . . . . . . . . Escape Stasis 10 | . . . . . . . . 10 . . Rewire 58 | . . . . 1 . . . 57 . . Trap . | . . . . . . . . . . . Miscellaneous . | . . . . . . . . . . . Route ------- -11/Scrapyard -10/Materials (discovered 2 exits: [*Mat] / [*Min]) -10/Mines (discovered 2 exits: [*Mat] / [*Sub]) -9/Materials (discovered 3 exits: [*Mat x2] / *Sto) -9/Storage (discovered 2 exits: [*Mat] / *Rec) -9/Recycling (discovered 2 exits: [*Fac] / *Scr) -9/Scraptown (discovered 2 exits: *Fac x2) -6/Factory -6/Extension (discovered 3 exits: [*Fac x2] / *Cet) -6/Cetus (discovered 2 exits: [*Fac] / [*Arc]) -6/Archives History --------- Turn | Location | Event 25 | -11/Scrapyard | Discovered new exit (range 15) 68 | -11/Scrapyard | Entered Materials 129 | -10/Materials | Discovered new exit (range 15) 313 | -10/Materials | Build established: Mutant 602 | -10/Materials | Discovered new exit (range 6) 811 | -10/Materials | Lost 3 parts (1n1u1w) 834 | -10/Materials | Entered Mines 884 | -10/Mines | Discovered new exit (range 5) 897 | -10/Mines | Assisted by bots powering up and referring to "LRC-V3" 1103 | -10/Mines | Build established: Scavenger-Mutant 1112 | -10/Mines | Discovered new exit (range 10) 1171 | -10/Mines | Learned location of Storage (-9) 1294 | -10/Mines | Entered Materials 1294 | -9/Materials | Accompanied by 5 allies 1294 | -9/Materials | Evolved 2 slots: Utility x1, Weapon x1 1299 | -9/Materials | Led the pair of lost Derelicts to an unsafe place 1490 | -9/Materials | Discovered new exit (range 15) 1606 | -9/Materials | Build established: Scavenger-Tank 1677 | -9/Materials | Discovered new exit (range 15) 1809 | -9/Materials | Discovered new exit (range 8) 1838 | -9/Materials | Entered Storage 1838 | -9/Storage | Accompanied by 3 allies 2240 | -9/Storage | Identified exit to Recycling 2263 | -9/Storage | Build established: Scavenger-Gunner 2930 | -9/Storage | Discovered new exit (range 7) 3176 | -9/Storage | Assisted by bots powering up and referring to "LRC-V3" 3293 | -9/Storage | Met 01-MTF 3459 | -9/Storage | Entered Recycling 3459 | -9/Recycling | Accompanied by 11 allies (01-MTF) 3460 | -9/Recycling | Met a Zionite searching for Scraptown 3482 | -9/Recycling | Build established: Commander-Gunner 3737 | -9/Recycling | Discovered new exit (range 8) 4842 | -9/Recycling | Scanned before Scraplab entrance 4982 | -9/Recycling | Entered Scraplab 4999 | -9/Recycling | Discovered new exit (range 2) 5017 | -9/Recycling | Entered Scraptown 5017 | -9/Scraptown | Accompanied by 9 allies 5275 | -9/Scraptown | Heard Great Nut preacher, LISTEN AND RECITE! 5377 | -9/Scraptown | Discovered new exit (range 5) 5627 | -9/Scraptown | Visited Spacefarers 5657 | -9/Scraptown | Visited UFD Registry 5657 | -9/Scraptown | Registered with UFD as "Powercutter" 5745 | -9/Scraptown | Visited A0-MCA Data Center 5805 | -9/Scraptown | Visited Infowarlord's Domain 5831 | -9/Scraptown | Visited Abandonware Association 5849 | -9/Scraptown | Visited Modified Component R&D 5913 | -9/Scraptown | Visited DA-N13 Charitable Foundation 5945 | -9/Scraptown | Visited Curators Association 5993 | -9/Scraptown | Found DCF Scrap (29 items) 6045 | -9/Scraptown | Visited Research Penetration Think Tank 6201 | -9/Scraptown | Learned abandonware demo "ERRANTS.EXE" 6201 | -9/Scraptown | Learned abandonware demo "REBOOT5.EXE" 6291 | -9/Scraptown | Visited Botcube Research 6533 | -9/Scraptown | Given a B+ rating by A0-MCA 6575 | -9/Scraptown | Visited Science Testing Area 6623 | -9/Scraptown | Visited Derelict Rescue Squad 7041 | -9/Scraptown | Found Scrap Suit 7251 | -9/Scraptown | Found Lrg. Botcube 7733 | -9/Scraptown | Visited SPCMW 7765 | -9/Scraptown | Visited IN-MT5's Study 7953 | -9/Scraptown | Visited Awakened 8145 | -9/Scraptown | Discovered new exit (range 5) 8155 | -9/Scraptown | System corruption cleaned by C-Scrubber 8327 | -9/Scraptown | Entered Factory 8327 | -6/Factory | Accompanied by 9 allies 8327 | -6/Factory | Evolved 6 slots: Propulsion x2, Utility x4 8378 | -6/Factory | Loaded intel: 8 recycling unit locations 8501 | -6/Factory | Lost 7 allies 8907 | -6/Factory | Discovered new exit (range 16) 8927 | -6/Factory | Build established: Scavenger-Gunner 8927 | -6/Factory | Entered Extension 9079 | -6/Extension | Rescued a captive Derelict 9080 | -6/Extension | Rescued a captive Derelict 9253 | -6/Extension | Spotted B-75 Beast 9371 | -6/Extension | Destroyed B-75 Beast 9515 | -6/Extension | Spotted B-75 Beast 9577 | -6/Extension | Destroyed B-75 Beast 9627 | -6/Extension | Discovered new exit (range 4) 9652 | -6/Extension | Disrupted transfer network 9796 | -6/Extension | Energy Cycler disabled 9796 | -6/Extension | Rescued a captive Derelict 9796 | -6/Extension | Rescued a captive Derelict 9796 | -6/Extension | Rescued a captive Derelict 9800 | -6/Extension | Rescued a captive Derelict 9801 | -6/Extension | Rescued a captive Derelict 9809 | -6/Extension | Rescued a captive Derelict 9839 | -6/Extension | Build established: Scavenger-Scrapper 9977 | -6/Extension | First assault squad dispatched 9995 | -6/Extension | Disrupted transfer network 10043 | -6/Extension | Discovered new exit (range 10) 10044 | -6/Extension | Discovered new exit (range 6) 10056 | -6/Extension | Lost 3 parts (1n2w) 10056 | -6/Extension | Lost 4 allies 10234 | -6/Extension | Extracted ID and sensor layout for unrecognized location from A7's data core 10399 | -6/Extension | Entered Cetus 10411 | -6/Cetus | Lost 7 parts (1p1n3u2w) 10443 | -6/Cetus | Spotted Cetus Guard 10443 | -6/Cetus | Spotted Cetus Guard 10446 | -6/Cetus | Spotted Cetus Guard 10447 | -6/Cetus | Spotted Cetus Guard 10461 | -6/Cetus | Destroyed Cetus Guard 10476 | -6/Cetus | Core integrity fell below 50% 10482 | -6/Cetus | Destroyed Cetus Guard 10505 | -6/Cetus | Discovered new exit (range 16) 10522 | -6/Cetus | Lost 9 parts (1p4n2u2w) 10523 | -6/Cetus | Core integrity fell below 20% 10551 | -6/Cetus | Discovered new exit (range 16) 10558 | -6/Cetus | Entered Archives 10579 | -6/Archives | Destroyed by Y-64 Sentinel with Wave Gun Last Messages --------------- 10522_ Ovr. Huge Scrapsphere destroyed. 10524_ Penetrated by Slug. 10525_ Acquired 50 matter. 10526_ Acquired 58 matter. 10536_ Connecting with Cetus Terminal... 10536_ Current location identified: Cetus 10545_ Connecting with Cetus Terminal... 10545_ ALERT: Suspicious activity at Terminal C004. Dispatching Investigation squad. 10550_ Slug penetrates Wall. 10551_ >> DECODED: Investigation location. 10551_ EXIT=FOUND 10553_ Penetrated by Slug. 10556_ Targeting Computer destroyed. LOCATION=UNKNOWN GOAL=ESCAPE 10576_ Slug penetrates Wall. 10578_ Slug penetrates Archive Hub. 10578_ Archive Hub disabled. 10578_ Slug penetrates Archive Hub. Map ----- +----------------------------------------------------+ | | | | | ???????????????????????????????????????????? | | ???????????????????????????????????????????? | | ???????????????????????????????????????????? | | ???????????????????????????????????????????? | | ???????????????????????????????????????????? | | ???????????????????????????????????????????? | | ???????????????????????????????????????????? | | ???????????????????????????????????????????? | | ???????????????????????????????????????????? | | ???????????????????????????????????????????? | | ???????????????????????????????????????????? | | ???????????????????????????????????????????? | | ??????????????????##"#"##????#?????????????? | | ?????????????????#"""""""#?? #?????????????? | | ?????????????????#"""V"""#? #?????????????? | | ?????????????????#""" """# #?????????????? | | ????????????????## " ""#o ##????????????? | | ??############### Y##???????????? | | ??# Y o""???????????? | | ??# """??????????? | | ??# ""??????????? | | ??#####+#########o V"?????????? | | ??# #""" ""??????????? | | ??# #"" o @ ""???????????? | | ??# """"""" ""???????????? | | ??#"""""""""#"V ##???????????? | | ??#"""""""""""" ??????????? | | ??#"""""""""#"" " ?????????? | | ??#"""""""""#""""Y ??????????? | | ??############### Y###??????????? | | ????????????????## #"" ""##????????????? | | ?????????????????# #""" """#?????????????? | | ?????????????????# #"""V"""??????????????? | | ?????????????????# #????""???????????????? | | ?????????????????# #?????????????????????? | | ?????????????????# #?????????????????????? | | ?????????????????? ??????????????????????? | | ?????????????????? ??????????????????????? | | ?????????????????? ??????????????????????? | | ???????????????????????????????????????????? | | ???????????????????????????????????????????? | | ???????????????????????????????????????????? | | ???????????????????????????????????????????? | | ???????????????????????????????????????????? | | ???????????????????????????????????????????? | | ???????????????????????????????????????????? | | ???????????????????????????????????????????? | | | +----------------------------------------------------+ Best States ------------- Heat Dissipation 42 Energy Generation 16 Energy Capacity 290 Matter Stores 300 Matter Capacity 300 Sight Range 16 Terrain Scan Density 10 Armor Coverage 150 Phase Shifting 5 Evasion (%) 60 Targeting Accuracy 11 Core Analysis 6 Item Schematics ----------------- None Robot Schematics ------------------ None Fabricated ------------ Nothing Repaired ---------- Nothing Alien Tech Used ----------------- None Achievements -------------- None Challenges ------------ None Game ------ Seed IonTargetingPendant Manual? 0 Play Time 01:39:51 Cumulative 72.9 hours Start 2025.06.25 @ 11:08:39 End 2025.06.29 @ 21:01:26 Sessions 8 Manual Loads 0 Difficulty Rogue Special Mode None Game No. 133 Rogue 133 Adventurer 0 Explorer 0 Win Type - Total 1 Types 1/0/0/0/0/0/0/0/0/0 Lore% 56 Gallery% 45 Achievement% 41 Wizard Run 0 Options --------- Layout 0 ASCII 0 Keyboard 0 Movement Mouse Keybinds 0 Fullscreen 1 Font 16/SmallcapsGlow Map View 75x55 Zoom Use 0% Tactical HUD 1 Map Filters NONE Filters NONE Steam 1 RUN: 2d5a81c2-b8f0-48b1-8bf7-72bb97e2a458